fUST/lending_fUST_20250903
["ID","MTS","AMOUNT","RATE_DAILY","PERIOD"]
[383148736,1756866429124,-480.0,0.0001452,2]
[383148737,1756866429148,-1757.27,0.0001452,2]
[383148738,1756866429172,-480.0,0.0001452,2]
[383148739,1756866429195,-480.0,0.0001452,2]
[383148740,1756866429218,-61.7831034,0.00014521,2]
[383148741,1756866485360,1804.72728034,0.00029786,60]
[383148745,1756866492859,6160.35240276,0.00029786,120]
[383148747,1756866515026,1031.50039394,0.00029786,60]
[383148749,1756866521894,243.42134653,0.00029786,120]
[383148750,1756866522050,1144.10153699,0.00029786,120]
[383148752,1756866530000,509.2027222,0.00029786,120]
[383148753,1756866530372,205.25313426,0.00029786,120]
[383148950,1756866634958,-300.0,0.00013687,2]
[383148951,1756866634970,-1200.0,0.00013687,2]
[383148952,1756866634981,-500.0,0.00013687,2]
[383148953,1756866634990,-368.86508777,0.00013687,2]
[383148954,1756866635001,-500.0,0.00013687,2]
[383148955,1756866635011,-1756.11794023,0.00013688,2]
[383148990,1756866637961,-203.00013438,0.00013687,2]
[383148992,1756866637971,-4029.82744209,0.00013688,2]
[383149977,1756867352626,986.4,0.0002739,120]
[383150025,1756867832228,-266.53191369,0.00013597,2]
[383150027,1756867832242,-300.0,0.00013684,2]
[383150028,1756867832253,-54.77850932,0.00013684,2]
[383150029,1756867832265,-245.22149068,0.00013684,2]
[383150030,1756867832275,-300.0,0.00013684,2]
[383150031,1756867832285,-229.17060233,0.00013684,2]
[383150032,1756867832297,-70.82939767,0.00013684,2]
[383150033,1756867832306,-300.0,0.00013684,2]
[383150035,1756867832316,-1200.0,0.00013684,2]
[383150037,1756867832326,-1200.0,0.00013685,2]
[383150039,1756867832335,-749.65580753,0.00013687,2]
[383150041,1756867832345,-166.09227364,0.00013687,2]
[383150043,1756867832354,-500.0,0.00013687,2]
[383150045,1756867832364,-500.0,0.00013687,2]
[383150047,1756867832374,-379.97864584,0.00013687,2]
[383150049,1756867832384,-204.86626098,0.00013687,2]
[383150052,1756867832393,-500.0,0.00013687,2]
[383150054,1756867832403,-250.06039454,0.00013687,2]
[383150056,1756867832412,-428.2787051,0.00013687,2]
[383150058,1756867832422,-500.0,0.00013687,2]
[383150060,1756867832432,-500.0,0.00013687,2]
[383150062,1756867832441,-500.0,0.00013687,2]
[383150064,1756867832451,-500.0,0.00013687,2]
[383150066,1756867832460,-500.0,0.00013687,2]
[383150068,1756867832470,-500.0,0.00013687,2]
[383150071,1756867832479,-500.0,0.00013687,2]
[383150072,1756867832489,-500.0,0.00013687,2]
[383150075,1756867832501,-500.0,0.00013687,2]
[383150077,1756867832511,-500.0,0.00013687,2]
[383150079,1756867832521,-406.23020668,0.00013687,2]
[383150081,1756867832531,-10225.6983225,0.00013688,2]
[383150083,1756867832549,-361.30429069,0.00013688,2]
[383150133,1756867838127,-579.60277608,0.00013688,2]
[383150134,1756867838139,-920.0,0.00013688,2]
[383150135,1756867838151,-6602.31379358,0.00013688,2]
[383150136,1756867838162,-3368.60463169,0.00013688,2]
[383150137,1756867838232,-3072.28739195,0.00013688,2]
[383150380,1756867843329,-5383.5,0.00013688,2]
[383150725,1756867846462,-1031.61857672,0.00013688,2]
[383150728,1756867846475,-2420.56194796,0.00013688,2]
[383150743,1756867846622,-132314.86384702,0.00013688,2]
[383150745,1756867846634,-648.1999453,0.00013688,2]
[383151165,1756868048244,815.47,0.00012329,2]
[383151220,1756868058738,853.3,0.00012329,2]
[383151221,1756868069149,711.08,0.00012329,2]
[383151222,1756868079815,592.57,0.00012329,2]
[383151223,1756868090224,493.81,0.00012329,2]
[383151224,1756868100865,411.5,0.00012329,2]
[383151225,1756868111595,342.92,0.00012329,2]
[383151226,1756868122078,285.77,0.00012329,2]
[383151227,1756868132702,285.77,0.00012329,2]
[383151228,1756868143564,190.51,0.00012329,2]
[383151229,1756868154167,158.76,0.00012329,2]
[383151230,1756868165065,793.82,0.00012329,2]
[383151234,1756868257122,264.61509438,0.00013327,2]
[383151295,1756868681013,264.61509438,0.00013327,2]
[383151323,1756868826644,158.97,0.00027397,120]
[383151334,1756868903548,264.61509438,0.00013327,2]
[383151358,1756869014814,10277.62,0.00029785,60]
[383151366,1756869032516,-230.91941122,0.00013462,2]
[383151367,1756869032527,-300.0,0.00013685,2]
[383151368,1756869032537,-1073.67772942,0.00013685,2]
[383151369,1756869032550,-126.32227058,0.00013685,2]
[383151371,1756869032559,-300.0,0.00013686,2]
[383151373,1756869032569,-300.0,0.00013686,2]
[383151374,1756869032578,-215.56039675,0.00013686,2]
[383151378,1756869032630,-84.43960325,0.00013686,2]
[383151379,1756869032640,-300.0,0.00013686,2]
[383151380,1756869032649,-307.0,0.00013687,2]
[383151381,1756869032659,-1808.41295055,0.00013688,2]
[383151382,1756869032671,-3950.0,0.00013688,2]
[383151463,1756869038283,-3576.34701165,0.00013688,2]
[383155448,1756869082241,2000.0,0.00013,2]
[383158290,1756869786736,-2999.999999,0.000135,2]
[383158291,1756869786759,-1198.0,0.00013687,2]
[383158292,1756869786785,-300.0,0.00013687,2]
[383158293,1756869786807,-5878.45277642,0.00013688,2]
[383158294,1756869786827,-1587.3779074,0.00013688,2]
[383158295,1756869786849,-686.24410499,0.00013688,2]
[383158296,1756869786872,-165.604,0.00013697,2]
[383158297,1756869786894,-194.9777001,0.00013697,2]
[383158298,1756869786917,-480.0,0.00013698,2]
[383158299,1756869786938,-480.0,0.00013698,2]
[383158300,1756869786959,-481.10125502,0.00013698,2]
[383158301,1756869786981,-485.1411862,0.00013698,2]
[383158302,1756869787003,-480.0,0.00013698,2]
[383158303,1756869787025,-480.0,0.00013698,2]
[383158304,1756869787048,-481.70534512,0.00013698,2]
[383158305,1756869787201,-482.32461804,0.00013698,2]
[383158306,1756869787223,-481.01273808,0.00013698,2]
[383158307,1756869787245,-480.0,0.00013698,2]
[383158308,1756869787266,-489.70330063,0.00013698,2]
[383158309,1756869787290,-481.23725539,0.00013698,2]
[383158310,1756869787311,-480.0,0.00013698,2]
[383158311,1756869787337,-480.0,0.00013698,2]
[383158312,1756869787361,-480.0,0.00013698,2]
[383158313,1756869787383,-481.77535468,0.00013698,2]
[383158314,1756869787406,-481.8718385,0.00013698,2]
[383158315,1756869787429,-482.0053665,0.00013698,2]
[383158316,1756869787450,-480.0,0.00013698,2]
[383158317,1756869787471,-480.0,0.00013698,2]
[383158318,1756869787492,-481.38939447,0.00013698,2]
[383158319,1756869787514,-480.0,0.00013698,2]
[383158320,1756869787535,-481.58022033,0.00013698,2]
[383158321,1756869787557,-480.0,0.00013698,2]
[383158322,1756869787579,-480.0,0.00013698,2]
[383158323,1756869787601,-480.0,0.00013698,2]
[383158324,1756869787622,-482.0139335,0.00013698,2]
[383158325,1756869787643,-480.0,0.00013698,2]
[383158326,1756869787664,-480.0,0.00013698,2]
[383158327,1756869787685,-480.0,0.00013698,2]
[383158328,1756869787707,-404.58687067,0.00013698,2]
[383158329,1756869787728,-480.0,0.00013698,2]
[383158330,1756869787749,-480.0,0.00013698,2]
[383158331,1756869787774,-480.0,0.00013698,2]
[383158332,1756869787799,-480.0,0.00013698,2]
[383158333,1756869787820,-480.0,0.00013698,2]
[383158334,1756869787841,-484.76895142,0.00013698,2]
[383158335,1756869787862,-151.0,0.00013698,2]
[383158336,1756869787885,-480.0,0.00013698,2]
[383158337,1756869787905,-486.11966862,0.00013698,2]
[383158338,1756869787926,-480.0,0.00013698,2]
[383158339,1756869787946,-480.0,0.00013698,2]
[383158340,1756869787967,-480.0,0.00013698,2]
[383158341,1756869787988,-603.04,0.00013698,2]
[383158342,1756869788010,-480.0,0.00013698,2]
[383158343,1756869788035,-480.0,0.00013698,2]
[383158344,1756869788058,-480.0,0.00013698,2]
[383158345,1756869788079,-484.87507311,0.00013698,2]
[383158346,1756869788101,-480.0,0.00013698,2]
[383158347,1756869788122,-480.0,0.00013698,2]
[383158348,1756869788143,-480.0,0.00013698,2]
[383158349,1756869788167,-480.0,0.00013698,2]
[383158350,1756869788198,-415.38087933,0.00013698,2]
[383158351,1756869788220,-397.41879071,0.00013698,2]
[383158352,1756869788241,-480.0,0.00013698,2]
[383158353,1756869788264,-480.0,0.00013698,2]
[383158354,1756869788286,-480.0,0.00013698,2]
[383158355,1756869788308,-480.0,0.00013698,2]
[383158356,1756869788330,-480.0,0.00013698,2]
[383158357,1756869788352,-480.0,0.00013698,2]
[383158358,1756869788374,-480.0,0.00013698,2]
[383158359,1756869788398,-484.99408432,0.00013698,2]
[383158360,1756869788423,-480.0,0.00013698,2]
[383158361,1756869788445,-480.0,0.00013698,2]
[383158362,1756869788467,-480.0,0.00013698,2]
[383158363,1756869788491,-359.71,0.00013698,2]
[383158364,1756869788513,-480.0,0.00013698,2]
[383158365,1756869788537,-480.0,0.00013698,2]
[383158366,1756869788559,-480.0,0.00013698,2]
[383158367,1756869788581,-480.0,0.00013698,2]
[383158368,1756869788604,-480.0,0.00013698,2]
[383158369,1756869788628,-1519.18,0.00013698,2]
[383158370,1756869788651,-480.0,0.00013698,2]
[383158371,1756869788673,-480.0,0.00013698,2]
[383158372,1756869788697,-480.0,0.00013698,2]
[383158373,1756869788722,-849.98,0.00013698,2]
[383158374,1756869788757,-480.0,0.00013698,2]
[383158375,1756869788785,-501.35,0.00013698,2]
[383158376,1756869788810,-480.0,0.00013698,2]
[383158377,1756869788845,-480.0,0.00013698,2]
[383158378,1756869788869,-480.0,0.00013698,2]
[383158379,1756869788891,-480.0,0.00013698,2]
[383158380,1756869788917,-168.70589165,0.00013698,2]
[383158381,1756869788944,-480.0,0.00013698,2]
[383158382,1756869788966,-480.0,0.00013698,2]
[383158383,1756869788988,-480.0,0.00013698,2]
[383158384,1756869789010,-480.0,0.00013698,2]
[383158385,1756869789040,-480.0,0.00013698,2]
[383158386,1756869789064,-480.0,0.00013698,2]
[383158387,1756869789087,-480.0,0.00013698,2]
[383158388,1756869789111,-480.0,0.00013698,2]
[383158389,1756869789135,-480.0,0.00013698,2]
[383158390,1756869789158,-480.0,0.00013698,2]
[383158391,1756869789180,-480.0,0.00013698,2]
[383158392,1756869789202,-480.0,0.00013698,2]
[383158393,1756869789224,-551.57097142,0.00013698,2]
[383158394,1756869789245,-480.0,0.00013698,2]
[383158395,1756869789268,-535.24,0.00013698,2]
[383158396,1756869789291,-480.0,0.00013698,2]
[383158397,1756869789312,-480.0,0.00013698,2]
[383158398,1756869789334,-480.0,0.00013698,2]
[383158399,1756869789356,-480.0,0.00013698,2]
[383158400,1756869789378,-480.0,0.00013698,2]
[383158401,1756869789401,-1048.32,0.00013698,2]
[383158402,1756869789424,-480.0,0.00013698,2]
[383158403,1756869789449,-480.0,0.00013698,2]
[383158404,1756869789471,-480.0,0.00013698,2]
[383158405,1756869789495,-480.0,0.00013698,2]
[383158406,1756869789519,-2160.07,0.00013698,2]
[383158407,1756869789543,-1171.16,0.00013698,2]
[383158408,1756869789565,-484.45520413,0.00013698,2]
[383158409,1756869789588,-480.0,0.00013698,2]
[383158410,1756869789612,-480.0,0.00013698,2]
[383158411,1756869789635,-480.0,0.00013698,2]
[383158412,1756869789660,-480.0,0.00013698,2]
[383158413,1756869789682,-480.0,0.00013698,2]
[383158414,1756869789704,-480.0,0.00013698,2]
[383158415,1756869789727,-480.0,0.00013698,2]
[383158416,1756869789749,-480.0,0.00013698,2]
[383158417,1756869789777,-480.0,0.00013698,2]
[383158418,1756869789805,-480.0,0.00013698,2]
[383158419,1756869789829,-480.0,0.00013698,2]
[383158420,1756869789852,-662.75,0.00013698,2]
[383158421,1756869789876,-480.0,0.00013698,2]
[383158422,1756869789898,-480.0,0.00013698,2]
[383158423,1756869789921,-151.0,0.00013698,2]
[383158424,1756869789945,-480.0,0.00013698,2]
[383158425,1756869789971,-480.0,0.00013698,2]
[383158426,1756869789997,-764.24,0.00013698,2]
[383158427,1756869790021,-480.0,0.00013698,2]
[383158428,1756869790043,-480.0,0.00013698,2]
[383158429,1756869790067,-480.0,0.00013698,2]
[383158430,1756869790089,-480.0,0.00013698,2]
[383158431,1756869790112,-480.0,0.00013698,2]
[383158432,1756869790135,-580.69,0.00013698,2]
[383158433,1756869790160,-480.0,0.00013698,2]
[383158434,1756869790184,-331.88093865,0.00013698,2]
[383158435,1756869790207,-1084.84,0.00013698,2]
[383158436,1756869790233,-480.0,0.00013698,2]
[383158437,1756869790258,-480.0,0.00013698,2]
[383158438,1756869790284,-719.07,0.00013698,2]
[383158439,1756869790309,-480.0,0.00013698,2]
[383158440,1756869790332,-480.0,0.00013698,2]
[383158441,1756869790357,-1192.59,0.00013698,2]
[383158442,1756869790379,-481.86248065,0.00013698,2]
[383158443,1756869790400,-485.97379646,0.00013698,2]
[383158444,1756869790423,-480.0,0.00013698,2]
[383158445,1756869790448,-489.78,0.00013698,2]
[383158446,1756869790471,-480.0,0.00013698,2]
[383158447,1756869790493,-480.0,0.00013698,2]
[383158448,1756869790515,-520.18,0.00013698,2]
[383158449,1756869790539,-578.75,0.00013698,2]
[383158450,1756869790561,-480.0,0.00013698,2]
[383158451,1756869790583,-480.0,0.00013698,2]
[383158452,1756869790606,-410.56157373,0.00013698,2]
[383158453,1756869790630,-480.0,0.00013698,2]
[383158454,1756869790652,-480.0,0.00013698,2]
[383158455,1756869790675,-480.0,0.00013698,2]
[383158456,1756869790698,-889.54,0.00013698,2]
[383158457,1756869790721,-480.0,0.00013698,2]
[383158458,1756869790745,-577.1,0.00013698,2]
[383158459,1756869790769,-480.0,0.00013698,2]
[383158460,1756869790796,-480.0,0.00013698,2]
[383158461,1756869790820,-480.0,0.00013698,2]
[383158462,1756869790844,-480.0,0.00013698,2]
[383158463,1756869790867,-480.0,0.00013698,2]
[383158464,1756869790890,-480.0,0.00013698,2]
[383158465,1756869790912,-480.0,0.00013698,2]
[383158466,1756869790935,-413.74653076,0.00013698,2]
[383158622,1756870232837,-300.0,0.00013697,2]
[383158624,1756870232847,-343.1220525,0.00013698,2]
[383158625,1756870232856,-480.0,0.00013698,2]
[383158627,1756870232866,-480.0,0.00013698,2]
[383158628,1756870232877,-480.0,0.00013698,2]
[383158629,1756870232887,-480.0,0.00013698,2]
[383158630,1756870232896,-480.0,0.00013698,2]
[383158631,1756870232906,-480.0,0.00013698,2]
[383158632,1756870232916,-282.52,0.00013698,2]
[383158633,1756870232926,-573.29,0.00013698,2]
[383158634,1756870232935,-577.92,0.00013698,2]
[383158635,1756870232945,-249.64,0.00013698,2]
[383158636,1756870232954,-480.0,0.00013698,2]
[383158637,1756870232965,-480.0,0.00013698,2]
[383158638,1756870232974,-251.01,0.00013698,2]
[383158639,1756870232984,-852.47,0.00013698,2]
[383158640,1756870232994,-480.0,0.00013698,2]
[383158641,1756870233004,-480.0,0.00013698,2]
[383158642,1756870233013,-2429.27,0.00013698,2]
[383158643,1756870233023,-480.0,0.00013698,2]
[383158644,1756870233032,-480.46,0.00013698,2]
[383158645,1756870233042,-480.0,0.00013698,2]
[383158646,1756870233051,-814.56,0.00013698,2]
[383158647,1756870233061,-480.0,0.00013698,2]
[383158648,1756870233071,-480.0,0.00013698,2]
[383158649,1756870233081,-480.0,0.00013698,2]
[383158650,1756870233091,-480.0,0.00013698,2]
[383158651,1756870233100,-480.0,0.00013698,2]
[383158652,1756870233109,-480.0,0.00013698,2]
[383158653,1756870233119,-480.0,0.00013698,2]
[383158654,1756870233130,-480.0,0.00013698,2]
[383158655,1756870233139,-512.94,0.00013698,2]
[383158656,1756870233149,-480.0,0.00013698,2]
[383158657,1756870233158,-480.0,0.00013698,2]
[383158658,1756870233168,-480.0,0.00013698,2]
[383158659,1756870233179,-480.0,0.00013698,2]
[383158660,1756870233189,-1004.64,0.00013698,2]
[383158661,1756870233199,-480.0,0.00013698,2]
[383158662,1756870233209,-480.0,0.00013698,2]
[383158663,1756870233218,-480.0,0.00013698,2]
[383158664,1756870233228,-480.0,0.00013698,2]
[383158665,1756870233238,-480.0,0.00013698,2]
[383158666,1756870233247,-493.01985707,0.00013698,2]
[383158667,1756870233257,-480.0,0.00013698,2]
[383158668,1756870233267,-480.0,0.00013698,2]
[383158669,1756870233276,-480.0,0.00013698,2]
[383158670,1756870233286,-176.04748895,0.00013698,2]
[383158671,1756870233295,-480.0,0.00013698,2]
[383158672,1756870233305,-497.17659035,0.00013698,2]
[383158673,1756870233316,-480.0,0.00013698,2]
[383158674,1756870233332,-480.0,0.00013698,2]
[383158675,1756870233341,-635.13,0.00013698,2]
[383158676,1756870233351,-1122.36,0.00013698,2]
[383158677,1756870233361,-480.0,0.00013698,2]
[383158678,1756870233371,-480.0,0.00013698,2]
[383158679,1756870233381,-480.0,0.00013698,2]
[383158680,1756870233390,-480.0,0.00013698,2]
[383158681,1756870233400,-1142.9,0.00013698,2]
[383158682,1756870233410,-480.0,0.00013698,2]
[383158683,1756870233419,-1039.64,0.00013698,2]
[383158684,1756870233429,-480.0,0.00013698,2]
[383158685,1756870233439,-480.0,0.00013698,2]
[383158686,1756870233448,-2070.07,0.00013698,2]
[383158687,1756870233458,-480.0,0.00013698,2]
[383158688,1756870233467,-554.63,0.00013698,2]
[383158689,1756870233476,-605.61,0.00013698,2]
[383158690,1756870233486,-480.0,0.00013698,2]
[383158691,1756870233495,-556.5,0.00013698,2]
[383158692,1756870233505,-480.0,0.00013698,2]
[383158693,1756870233515,-411.77275828,0.00013698,2]
[383158694,1756870233526,-480.0,0.00013698,2]
[383158695,1756870233537,-480.0,0.00013698,2]
[383158696,1756870233547,-480.0,0.00013698,2]
[383158697,1756870233556,-480.0,0.00013698,2]
[383158698,1756870233566,-689.11,0.00013698,2]
[383158699,1756870233576,-491.13190456,0.00013698,2]
[383158700,1756870233586,-732.4,0.00013698,2]
[383158701,1756870233596,-480.0,0.00013698,2]
[383158702,1756870233606,-480.0,0.00013698,2]
[383158703,1756870233615,-480.0,0.00013698,2]
[383158704,1756870233625,-310.82,0.00013698,2]
[383158705,1756870233635,-1593.99,0.00013698,2]
[383158706,1756870233644,-690.095565,0.00013699,2]
[383158707,1756870233654,-274.35676594,0.00013867,2]
[383158709,1756870238459,-171.56102625,0.00013698,2]
[383158710,1756870238469,-417.15472785,0.00013867,2]
[383158711,1756870238478,-160.0,0.00013867,2]
[383158712,1756870238488,-488.23574279,0.00013867,2]
[383158713,1756870238568,-358.07997851,0.00013867,2]
[383158714,1756870238577,-208.33333333,0.00013867,2]
[383158715,1756870238587,-160.0,0.00013867,2]
[383158716,1756870238596,-217.50314573,0.00013867,2]
[383158717,1756870238605,-232.90165665,0.00013867,2]
[383158718,1756870238615,-160.0,0.00013869,2]
[383158719,1756870238625,-409.0,0.0001388,2]
[383158720,1756870238635,-1000.0,0.00013964,2]
[383158721,1756870238644,-1015.68238708,0.00013964,2]
[383158722,1756870238654,-151.0,0.00013964,2]
[383158723,1756870238663,-151.0,0.00013964,2]
[383158724,1756870238672,-151.0,0.00013964,2]
[383158725,1756870238682,-151.0,0.00013964,2]
[383158726,1756870238691,-151.0,0.00013964,2]
[383158727,1756870238700,-151.0,0.00013964,2]
[383158728,1756870238710,-151.0,0.00013964,2]
[383158729,1756870238719,-151.0,0.00013964,2]
[383158730,1756870238728,-151.0,0.00013964,2]
[383158731,1756870238737,-151.0,0.00013964,2]
[383158732,1756870238746,-151.0,0.00013964,2]
[383158733,1756870238756,-151.0,0.00013964,2]
[383158734,1756870238765,-151.0,0.00013964,2]
[383158735,1756870238774,-151.0,0.00013964,2]
[383158736,1756870238783,-151.0,0.00013964,2]
[383158737,1756870238793,-151.0,0.00013964,2]
[383158738,1756870238802,-159.13388887,0.00013964,2]
[383158739,1756870238811,-211.66780275,0.00013964,2]
[383158740,1756870238820,-480.0,0.00013972,2]
[383158741,1756870238830,-480.0,0.00013972,2]
[383158742,1756870238840,-480.0,0.00013972,2]
[383158743,1756870238849,-480.0,0.00013972,2]
[383158744,1756870238858,-480.0,0.00013972,2]
[383158745,1756870238868,-87.07780548,0.00013972,2]
[383158746,1756870238880,-392.92219452,0.00013972,2]
[383158747,1756870238890,-480.0,0.00013972,2]
[383158748,1756870238899,-199.10177557,0.00013972,2]
[383158749,1756870238910,-150.32822443,0.00013972,2]
[383158750,1756870238920,-363.17,0.00013972,2]
[383158751,1756870238930,-170.39019834,0.00013972,2]
[383158752,1756870238941,-264.63980166,0.00013972,2]
[383158753,1756870238950,-535.99,0.00013972,2]
[383158754,1756870238959,-257.60611838,0.00013972,2]
[383158909,1756870240583,-480.0,0.00013698,2]
[383158911,1756870240593,-66.96388162,0.00013972,2]
[383158913,1756870240603,-480.0,0.00013972,2]
[383158915,1756870240612,-480.0,0.00013972,2]
[383158917,1756870240622,-480.0,0.00013972,2]
[383158919,1756870240631,-480.0,0.00013972,2]
[383158921,1756870240640,-480.0,0.00013972,2]
[383158923,1756870240650,-480.0,0.00013972,2]
[383158925,1756870240659,-152.31,0.00013972,2]
[383158927,1756870240669,-480.0,0.00013972,2]
[383158929,1756870240679,-234.4,0.00013972,2]
[383158931,1756870240689,-577.92,0.00013972,2]
[383158933,1756870240698,-151.0,0.00013972,2]
[383158935,1756870240707,-852.47,0.00013972,2]
[383158937,1756870240717,-480.0,0.00013972,2]
[383158939,1756870240726,-480.0,0.00013972,2]
[383158941,1756870240735,-2429.27,0.00013972,2]
[383158943,1756870240744,-480.0,0.00013972,2]
[383158945,1756870240753,-480.46,0.00013972,2]
[383158947,1756870240762,-284.91,0.00013972,2]
[383158948,1756870240772,-814.56,0.00013972,2]
[383158951,1756870240781,-480.0,0.00013972,2]
[383158952,1756870240791,-480.0,0.00013972,2]
[383158954,1756870240800,-62.50350378,0.00013972,2]
[383172109,1756870457371,1393.16009337,0.00013291,2]
[383172138,1756870552944,1393.16009337,0.00013291,2]
[383172193,1756870775780,183.51227797,0.0001329,2]
[383172201,1756870798697,183.51227797,0.0001329,2]
[383172202,1756870822098,183.51227797,0.0001329,2]
[383172204,1756870844954,183.51227797,0.0001329,2]
[383172205,1756870867838,183.51227797,0.0001329,2]
[383172207,1756870891196,183.51227797,0.0001329,2]
[383172210,1756870914171,183.51227797,0.0001329,2]
[383172215,1756870937571,183.51227797,0.0001329,2]
[383172221,1756870954854,183.51227797,0.0001329,2]
[383172442,1756871436552,-1260.10330142,0.00013425,2]
[383172444,1756871436658,-5878.63838145,0.00013425,2]
[383172445,1756871436668,-183.51227797,0.00013598,2]
[383172446,1756871436678,-300.0,0.00013697,2]
[383172447,1756871436688,-480.0,0.00013698,2]
[383172448,1756871436697,-480.0,0.00013698,2]
[383172449,1756871436708,-480.0,0.00013698,2]
[383172450,1756871436717,-480.0,0.00013698,2]
[383172451,1756871436727,-480.0,0.00013698,2]
[383172452,1756871436736,-480.0,0.00013698,2]
[383172454,1756871436751,-480.0,0.00013698,2]
[383172456,1756871436771,-482.21294449,0.00013698,2]
[383172458,1756871436780,-503.71,0.00013698,2]
[383172460,1756871436791,-480.0,0.00013698,2]
[383172462,1756871436802,-480.0,0.00013698,2]
[383172463,1756871436812,-480.0,0.00013698,2]
[383172464,1756871436822,-480.0,0.00013698,2]
[383172465,1756871436832,-480.0,0.00013698,2]
[383172466,1756871436841,-151.0,0.00013698,2]
[383172467,1756871436852,-480.0,0.00013698,2]
[383172468,1756871436864,-480.0,0.00013698,2]
[383172469,1756871436874,-516.25,0.00013698,2]
[383172470,1756871436886,-480.0,0.00013698,2]
[383172471,1756871436896,-480.0,0.00013698,2]
[383172472,1756871436907,-361.93854853,0.00013698,2]
[383172473,1756871436918,-482.3,0.00013698,2]
[383172474,1756871436930,-480.0,0.00013698,2]
[383172475,1756871436940,-480.0,0.00013698,2]
[383172476,1756871436950,-480.0,0.00013698,2]
[383172477,1756871436959,-480.0,0.00013698,2]
[383172478,1756871436971,-317.48544019,0.00013698,2]
[383172479,1756871436982,-480.0,0.00013698,2]
[383172480,1756871436991,-449.70201307,0.00013698,2]
[383172489,1756871438009,-30.29798693,0.00013698,2]
[383172491,1756871438028,-500.0,0.00013698,2]
[383172492,1756871438048,-500.0,0.00013698,2]
[383172493,1756871438061,-480.0,0.00013698,2]
[383172494,1756871438071,-480.0,0.00013698,2]
[383172495,1756871438080,-118.09455508,0.00013698,2]
[383172496,1756871438092,-361.90544492,0.00013698,2]
[383172497,1756871438101,-480.0,0.00013698,2]
[383172498,1756871438111,-56.32683928,0.00013698,2]
[383172499,1756871438122,-423.67316072,0.00013698,2]
[383172500,1756871438131,-480.0,0.00013698,2]
[383172501,1756871438141,-529.76,0.00013698,2]
[383172502,1756871438150,-554.73,0.00013698,2]
[383172503,1756871438159,-524.18,0.00013698,2]
[383172504,1756871438169,-480.0,0.00013698,2]
[383172505,1756871438178,-155.25683928,0.00013698,2]
[383172549,1756871439860,-324.74316072,0.00013698,2]
[383172551,1756871439870,-480.0,0.00013698,2]
[383172553,1756871439879,-480.0,0.00013698,2]
[383172555,1756871439889,-480.0,0.00013698,2]
[383172557,1756871439898,-480.0,0.00013698,2]
[383172559,1756871439908,-480.0,0.00013698,2]
[383172561,1756871439917,-500.44,0.00013698,2]
[383172563,1756871439927,-480.0,0.00013698,2]
[383172565,1756871439937,-480.0,0.00013698,2]
[383172567,1756871439946,-480.0,0.00013698,2]
[383172569,1756871439956,-480.0,0.00013698,2]
[383172571,1756871439965,-541.03,0.00013698,2]
[383172573,1756871439974,-480.0,0.00013698,2]
[383172575,1756871439984,-480.0,0.00013698,2]
[383172577,1756871439993,-480.0,0.00013698,2]